[Event "FIDE WCCC Open-12 2024"]
[Site "Montesilvano"]
[Date "2024.11.25"]
[Round "10.28"]
[White "Filindash, Nikita"]
[Black "Matejka, Simon"]
[Result "1/2-1/2"]
[ECO "E59"]
[WhiteElo "2076"]
[BlackElo "1924"]
[Annotator "RC"]
[PlyCount "93"]
[EventDate "2024.11.18"]
[EventType "swiss"]
[EventCountry "ITA"]
[SourceTitle "playchess.com"]
[Source "ChessBase"]
[SourceQuality "1"]
[TimeControl "5400+30"]

1. d4 {[%emt 0:00:02]} Nf6 {[%emt 0:00:28]} 2. c4 {[%emt 0:00:01]} e6 {[%emt 0:00:12]} 3. Nc3 {[%emt 0:00:02]} Bb4 {[%emt 0:01:08]} 4. e3 {[%emt 0:00:11]} O-O {[%emt 0:00:18]} 5. Bd3 {[%emt 0:00:06]} d5 {[%emt 0:00:17]} 6. Nf3 {[%emt 0:00:06]} c5 {[%emt 0:00:13]} 7. O-O {[%emt 0:00:11]} Nc6 {[%emt 0:02:48]} 8. a3 {[%emt 0:00:14]} Bxc3 {[%emt 0:00:07]} 9. bxc3 {[%emt 0:00:03]} dxc4 {[%emt 0:00:50]} 10. Bxc4 {[%emt 0:00:02]} Qc7 {[%emt 0:00:34]} 11. Bb2 {[%emt 0:00:10]} Rd8 {[%emt 0:00:14]} 12. Rc1 {[%emt 0:10:09]} e5 {[%emt 0:01:44]} 13. h3 {[%emt 0:00:45]} Bf5 {[%emt 0:00:40]} 14. Qe2 {[%emt 0:04:20]} h6 {[%emt 0:11:19]} 15. Ba2 {[%emt 0:05:44]} e4 {[%emt 0:04:13]} 16. Nd2 {[%emt 0:00:21]} Rd7 {[%emt 0:03:25]} 17. Nb3 {[%emt 0:07:29]} b6 {[%emt 0:02:47]} 18. c4 {[%emt 0:04:55]} cxd4 {[%emt 0:08:51]} 19. Nxd4 {[%emt 0:04:55]} Bg6 {[%emt 0:01:25]} 20. c5 {[%emt 0:12:24]} Nxd4 {[%emt 0:04:57]} 21. Bxd4 {[%emt 0:00:10]} bxc5 {[%emt 0:03:55]} 22. Rxc5 {[%emt 0:00:48]} Qd8 {[%emt 0:03:26]} 23. Qc4 {[%emt 0:12:01]} Ne8 {[%emt 0:04:09]} 24. Rc1 {[%emt 0:14:33]} Nd6 {[%emt 0:04:30]} 25. Qa6 {[%emt 0:00:08]} Kh7 {[%emt 0:03:40]} 26. Bd5 {[%emt 0:09:01]} Rb8 {[%emt 0:00:10]} 27. Rc6 {[%emt 0:01:00]} Nf5 {[%emt 0:03:48]} 28. Bxe4 {[%emt 0:00:30]} Nxd4 {[%emt 0:00:24]} 29. Bxg6+ {[%emt 0:05:24]} fxg6 {[%emt 0:00:22]} 30. exd4 {[%emt 0:00:44]} Rxd4 {[%emt 0:00:52]} 31. Rxg6 {[%emt 0:07:28]} Rd1+ {[%emt 0:02:02]} 32. Rxd1 {[%emt 0:00:09]} Qxd1+ {[%emt 0:00:10]} 33. Kh2 {[%emt 0:00:06]} Rf8 {[%emt 0:15:08]} 34. Rg4 {[%emt 0:00:32]} Qd7 {[%emt 0:02:13]} 35. Qg6+ {[%emt 0:00:19]} Kg8 {[%emt 0:01:59]} 36. Rg3 {[%emt 0:02:04]} Qc7 {[%emt 0:01:34]} 37. Qe6+ {[%emt 0:00:08]} Kh8 {[%emt 0:00:08]} 38. Qe3 {[%emt 0:00:19]} Rf6 {[%emt 0:01:53]} 39. Kg1 {[%emt 0:00:23]} Rc6 {[%emt 0:00:57]} 40. Qe8+ {[%emt 0:01:21]} Kh7 {[%emt 0:00:05]} 41. Qe4+ {[%emt 0:00:04]} Kh8 {[%emt 0:00:05]} 42. f4 {[%emt 0:01:32]} Rf6 {[%emt 0:02:23]} 43. Rg4 {[%emt 0:00:16]} Qc1+ {[%emt 0:01:04]} 44. Kh2 {[%emt 0:00:03]} Qxa3 {[%emt 0:00:17]} 45. Qb7 {[%emt 0:00:33]} Qf8 {[%emt 0:00:21]} 46. Qxa7 {[%emt 0:00:20]} Rxf4 {[%emt 0:00:54]} 47. Rxf4 {[%emt 0:01:08]} 1/2-1/2

[Event "FIDE WCCC Open-12 2024"]
[Site "Montesilvano"]
[Date "2024.11.25"]
[Round "10.29"]
[White "Kozhedub, Ivan"]
[Black "Fulgentini, Edoardo"]
[Result "0-1"]
[ECO "B25"]
[WhiteElo "1826"]
[BlackElo "2075"]
[Annotator "RC"]
[PlyCount "82"]
[EventDate "2024.11.18"]
[EventType "swiss"]
[EventCountry "ITA"]
[SourceTitle "playchess.com"]
[Source "ChessBase"]
[SourceQuality "1"]
[TimeControl "5400+30"]

1. e4 {[%emt 0:00:10]} c5 {[%emt 0:00:05]} 2. Nc3 {[%emt 0:00:04]} Nc6 {[%emt 0:00:05]} 3. g3 {[%emt 0:00:03]} d6 {[%emt 0:00:05]} 4. Bg2 {[%emt 0:00:12]} g6 {[%emt 0:00:04]} 5. d3 {[%emt 0:00:03]} Bg7 {[%emt 0:00:04]} 6. Nge2 {[%emt 0:00:07]} e5 {[%emt 0:00:14]} 7. O-O {[%emt 0:00:59]} Nge7 {[%emt 0:04:30]} 8. f4 {[%emt 0:04:04]} Nd4 {[%emt 0:04:25]} 9. fxe5 {[%emt 0:01:58]} dxe5 {[%emt 0:01:27]} 10. Bg5 {[%emt 0:10:59]} h6 {[%emt 0:05:33]} 11. Bf6 {[%emt 0:16:39]} Bxf6 {[%emt 0:02:42]} 12. Rxf6 {[%emt 0:01:27]} O-O {[%emt 0:08:37]} 13. Qd2 {[%emt 0:05:53]} Kg7 {[%emt 0:10:23]} 14. Raf1 {[%emt 0:07:56]} Be6 {[%emt 0:02:35]} 15. Nd1 {[%emt 0:17:43]} c4 {[%emt 0:04:40]} 16. Ne3 {[%emt 0:04:39]} Nxe2+ {[%emt 0:05:08]} 17. Qxe2 {[%emt 0:00:03]} cxd3 {[%emt 0:00:35]} 18. cxd3 {[%emt 0:00:12]} Qd4 {[%emt 0:02:27]} 19. b3 {[%emt 0:07:36]} Rad8 {[%emt 0:07:12]} 20. R6f2 {[%emt 0:00:11]} Qxd3 {[%emt 0:07:53]} 21. Qf3 {[%emt 0:00:31]} Kh7 {[%emt 0:02:17]} 22. Re1 {[%emt 0:06:14]} Qc3 {[%emt 0:02:35]} 23. Ree2 {[%emt 0:01:13]} Rd3 {[%emt 0:02:53]} 24. Bf1 {[%emt 0:05:42]} Qc5 {[%emt 0:05:02]} 25. b4 {[%emt 0:04:01]} Qd4 {[%emt 0:02:40]} 26. Re1 {[%emt 0:01:52]} Qxb4 {[%emt 0:05:24]} 27. Bxd3 {[%emt 0:02:40]} Qxe1+ {[%emt 0:00:03]} 28. Kg2 {[%emt 0:00:09]} Nc6 {[%emt 0:01:48]} 29. Nf5 {[%emt 0:00:33]} Nd4 {[%emt 0:01:48]} 30. Qg4 {[%emt 0:00:59]} gxf5 {[%emt 0:04:23]} 31. exf5 {[%emt 0:00:21]} Bd5+ {[%emt 0:00:03]} 32. Kh3 {[%emt 0:00:07]} Rg8 {[%emt 0:01:24]} 33. f6+ {[%emt 0:01:07]} e4 {[%emt 0:00:51]} 34. Qf4 {[%emt 0:00:31]} exd3 {[%emt 0:01:30]} 35. Qxd4 {[%emt 0:00:06]} Qe6+ {[%emt 0:00:28]} 36. Kh4 {[%emt 0:01:26]} Qe4+ {[%emt 0:00:06]} 37. Rf4 {[%emt 0:00:00]} Qxd4 {[%emt 0:00:38]} 38. Rxd4 {[%emt 0:00:00]} Be6 {[%emt 0:00:44]} 39. Rxd3 {[%emt 0:00:00]} Rg4+ {[%emt 0:00:02]} 40. Kh5 {[%emt 0:00:00]} Rg5+ {[%emt 0:00:08]} 41. Kh4 {[%emt 0:00:00]} Kg6 {[%emt 0:00:08]} 0-1

[Event "FIDE WCCC Open-12 2024"]
[Site "Montesilvano"]
[Date "2024.11.25"]
[Round "10.30"]
[White "Elhusseiny, Eyad"]
[Black "Konstantinides, Savvas"]
[Result "1-0"]
[ECO "A17"]
[WhiteElo "2017"]
[BlackElo "1839"]
[Annotator "NA RC"]
[PlyCount "79"]
[EventDate "2024.11.18"]
[EventType "swiss"]
[EventCountry "ITA"]
[SourceTitle "playchess.com"]
[Source "ChessBase"]
[SourceQuality "1"]
[TimeControl "5400+30"]

1. Nf3 {[%emt 0:00:08]} Nf6 {[%emt 0:00:06]} 2. c4 {[%emt 0:00:04]} e6 {[%emt 0:00:05]} 3. e3 {[%emt 0:00:12]} d5 {[%emt 0:00:43]} 4. Nc3 {[%emt 0:00:11]} Bb4 {[%emt 0:01:08]} 5. Qa4+ {[%emt 0:06:04]} Nc6 {[%emt 0:00:55]} 6. cxd5 {[%emt 0:02:32]} Nxd5 {[%emt 0:03:30]} 7. Bb5 {[%emt 0:06:07]} Bxc3 {[%emt 0:04:30]} 8. Bxc6+ {[%emt 0:02:17]} bxc6 {[%emt 0:00:12]} 9. bxc3 {[%emt 0:01:11]} Bd7 {[%emt 0:00:40]} 10. Ba3 {[%emt 0:00:51]} f6 {[%emt 0:07:52]} 11. O-O {[%emt 0:06:26]} Kf7 {[%emt 0:03:12]} 12. Qc2 {[%emt 0:11:02]} e5 {[%emt 0:05:56]} 13. d4 {[%emt 0:02:39]} Bg4 {[%emt 0:01:09]} 14. Nd2 {[%emt 0:10:11]} Re8 {[%emt 0:04:21]} 15. c4 {[%emt 0:10:23]} Ne7 {[%emt 0:07:28]} 16. Nb3 {[%emt 0:05:52]} Ng6 {[%emt 0:07:51]} 17. h3 {[%emt 0:01:08]} Be6 {[%emt 0:02:44]} 18. Rad1 {[%emt 0:02:33]} e4 {[%emt 0:00:33]} 19. Nc5 {[%emt 0:01:35]} Qd6 {[%emt 0:08:48]} 20. Qa4 {[%emt 0:03:26]} Bxh3 {[%emt 0:01:46]} 21. Nxe4 {[%emt 0:06:06]} Qe6 {[%emt 0:00:29]} 22. f3 {[%emt 0:01:14]} Nh4 {[%emt 0:08:41]} 23. Rd2 {[%emt 0:00:32]} Qf5 {[%emt 0:04:32]} 24. gxh3 {[%emt 0:04:45]} Nxf3+ {[%emt 0:01:15]} 25. Rxf3 {[%emt 0:00:09]} Qxf3 {[%emt 0:00:19]} 26. Ng5+ {[%emt 0:00:05]} fxg5 {[%emt 0:00:13]} 27. Rf2 {[%emt 0:00:04]} Qxf2+ {[%emt 0:01:14]} 28. Kxf2 {[%emt 0:00:08]} Re6 {[%emt 0:00:07]} 29. Qa5 {[%emt 0:00:05]} Rae8 {[%emt 0:00:15]} 30. Qxc7+ {[%emt 0:00:18]} Kg8 {[%emt 0:00:21]} 31. Bc1 {[%emt 0:00:06]} h5 {[%emt 0:00:17]} 32. d5 {[%emt 0:01:35]} Rf6+ {[%emt 0:00:12]} 33. Ke2 {[%emt 0:00:24]} cxd5 {[%emt 0:00:10]} 34. cxd5 {[%emt 0:00:36]} Rf7 {[%emt 0:00:20]} 35. Qc6 {[%emt 0:01:57]} Ref8 {[%emt 0:01:33]} 36. Qe6 {[%emt 0:01:32]} Kh8 {[%emt 0:00:45]} 37. Qg6 {[%emt 0:00:20]} Rf2+ {[%emt 0:00:56]} 38. Kd3 {[%emt 0:00:13]} Rxa2 {[%emt 0:00:11]} 39. Bd2 {[%emt 0:01:12]} a5 {[%emt 0:00:43]} 40. Bc3 {[%emt 0:00:08]} 1-0

[Event "FIDE WCCC Open-12 2024"]
[Site "Montesilvano"]
[Date "2024.11.25"]
[Round "10.31"]
[White "Sason, Noam"]
[Black "Yang, Maxwell"]
[Result "1-0"]
[ECO "B50"]
[WhiteElo "2017"]
[BlackElo "1889"]
[Annotator "RC"]
[PlyCount "97"]
[EventDate "2024.11.18"]
[EventType "swiss"]
[EventCountry "ITA"]
[SourceTitle "playchess.com"]
[Source "ChessBase"]
[SourceQuality "1"]
[TimeControl "5400+30"]

1. e4 {[%emt 0:00:04]} c5 {[%emt 0:00:03]} 2. Nf3 {[%emt 0:00:09]} d6 {[%emt 0:00:04]} 3. Bc4 {[%emt 0:00:15]} Nc6 {[%emt 0:00:24]} 4. Bb3 {[%emt 0:02:04]} Nf6 {[%emt 0:02:31]} 5. d3 {[%emt 0:00:14]} g6 {[%emt 0:00:09]} 6. O-O {[%emt 0:00:57]} Bg7 {[%emt 0:00:12]} 7. Re1 {[%emt 0:00:15]} O-O {[%emt 0:01:22]} 8. c3 {[%emt 0:00:09]} e5 {[%emt 0:08:04]} 9. Nbd2 {[%emt 0:08:35]} Rb8 {[%emt 0:01:29]} 10. a4 {[%emt 0:02:02]} a6 {[%emt 0:00:36]} 11. Nf1 {[%emt 0:01:10]} b5 {[%emt 0:04:13]} 12. axb5 {[%emt 0:00:22]} axb5 {[%emt 0:00:07]} 13. Bg5 {[%emt 0:03:12]} Be6 {[%emt 0:03:40]} 14. Ne3 {[%emt 0:08:57]} Qb6 {[%emt 0:03:45]} 15. Bxf6 {[%emt 0:14:02]} Bxf6 {[%emt 0:00:08]} 16. Bd5 {[%emt 0:00:27]} Ne7 {[%emt 0:16:52]} 17. Bxe6 {[%emt 0:15:31]} fxe6 {[%emt 0:00:08]} 18. Qb3 {[%emt 0:00:22]} Kf7 {[%emt 0:00:12]} 19. Ng4 {[%emt 0:02:48]} h5 {[%emt 0:02:41]} 20. Nxf6 {[%emt 0:00:25]} Kxf6 {[%emt 0:00:06]} 21. h4 {[%emt 0:00:29]} Nc6 {[%emt 0:12:54]} 22. Ng5 {[%emt 0:00:56]} Rfe8 {[%emt 0:00:12]} 23. Re3 {[%emt 0:01:06]} Nd8 {[%emt 0:00:51]} 24. Rf3+ {[%emt 0:03:14]} Kg7 {[%emt 0:00:39]} 25. Qd1 {[%emt 0:03:11]} Rb7 {[%emt 0:01:47]} 26. Ra8 {[%emt 0:01:45]} Ra7 {[%emt 0:01:19]} 27. Rc8 {[%emt 0:02:50]} Rb7 {[%emt 0:17:13]} 28. Qb3 {[%emt 0:02:37]} Rbe7 {[%emt 0:01:57]} 29. Qa2 {[%emt 0:01:59]} c4 {[%emt 0:05:43]} 30. dxc4 {[%emt 0:02:29]} Qb7 {[%emt 0:02:10]} 31. Rxd8 {[%emt 0:09:45]} Rxd8 {[%emt 0:00:39]} 32. cxb5 {[%emt 0:01:48]} Qd7 {[%emt 0:01:27]} 33. c4 {[%emt 0:01:52]} d5 {[%emt 0:01:07]} 34. exd5 {[%emt 0:02:26]} exd5 {[%emt 0:00:24]} 35. Qa6 {[%emt 0:00:03]} Qd6 {[%emt 0:00:58]} 36. Qxd6 {[%emt 0:02:31]} Rxd6 {[%emt 0:00:05]} 37. c5 {[%emt 0:00:04]} Rdd7 {[%emt 0:00:13]} 38. b6 {[%emt 0:01:09]} Re8 {[%emt 0:01:28]} 39. c6 {[%emt 0:01:47]} Rd6 {[%emt 0:00:18]} 40. Rf7+ {[%emt 0:00:37]} Kg8 {[%emt 0:00:07]} 41. Rc7 {[%emt 0:00:18]} Rdd8 {[%emt 0:02:00]} 42. b7 {[%emt 0:00:42]} d4 {[%emt 0:00:31]} 43. Rd7 {[%emt 0:00:47]} Rxd7 {[%emt 0:03:56]} 44. cxd7 {[%emt 0:00:05]} Rb8 {[%emt 0:00:04]} 45. Ne6 {[%emt 0:00:11]} d3 {[%emt 0:00:05]} 46. Kf1 {[%emt 0:00:27]} d2 {[%emt 0:00:32]} 47. Ke2 {[%emt 0:00:09]} d1=Q+ {[%emt 0:08:35]} 48. Kxd1 {[%emt 0:00:03]} Kf7 {[%emt 0:00:00]} 49. d8=Q {[%emt 0:00:13]} 1-0

[Event "FIDE WCCC Open-12 2024"]
[Site "Montesilvano"]
[Date "2024.11.25"]
[Round "10.32"]
[White "Dauren, Darmen"]
[Black "Bocquenet-Drouode, Hugo"]
[Result "1/2-1/2"]
[ECO "D02"]
[WhiteElo "1820"]
[BlackElo "2002"]
[Annotator "RC"]
[PlyCount "131"]
[EventDate "2024.11.18"]
[EventType "swiss"]
[EventCountry "ITA"]
[SourceTitle "playchess.com"]
[Source "ChessBase"]
[SourceQuality "1"]
[TimeControl "5400+30"]

1. d4 {[%emt 0:00:25]} d5 {[%emt 0:00:11]} 2. Bf4 {[%emt 0:00:13]} c5 {[%emt 0:00:10]} 3. e3 {[%emt 0:00:03]} Nc6 {[%emt 0:00:21]} 4. Nf3 {[%emt 0:00:08]} Nf6 {[%emt 0:00:13]} 5. Nc3 {[%emt 0:00:20]} Bg4 {[%emt 0:07:46]} 6. Be2 {[%emt 0:01:50]} e6 {[%emt 0:00:57]} 7. O-O {[%emt 0:11:08]} cxd4 {[%emt 0:03:13]} 8. Nxd4 {[%emt 0:10:00]} Bxe2 {[%emt 0:01:06]} 9. Qxe2 {[%emt 0:03:26]} Bd6 {[%emt 0:04:09]} 10. Bxd6 {[%emt 0:14:00]} Qxd6 {[%emt 0:03:53]} 11. Rfd1 {[%emt 0:02:34]} O-O {[%emt 0:03:03]} 12. Nf3 {[%emt 0:11:49]} Qb4 {[%emt 0:04:34]} 13. Qb5 {[%emt 0:10:11]} Rac8 {[%emt 0:11:21]} 14. Qxb4 {[%emt 0:06:59]} Nxb4 {[%emt 0:00:16]} 15. a3 {[%emt 0:01:17]} Na6 {[%emt 0:02:54]} 16. Ne5 {[%emt 0:03:15]} Nc5 {[%emt 0:01:24]} 17. f3 {[%emt 0:00:41]} Rfd8 {[%emt 0:01:51]} 18. Rd2 {[%emt 0:01:37]} Ne8 {[%emt 0:07:05]} 19. Ne2 {[%emt 0:05:00]} f6 {[%emt 0:01:12]} 20. Nd3 {[%emt 0:00:31]} Nd6 {[%emt 0:02:21]} 21. Nxc5 {[%emt 0:00:45]} Rxc5 {[%emt 0:00:09]} 22. Nf4 {[%emt 0:02:13]} Kf7 {[%emt 0:00:43]} 23. Nd3 {[%emt 0:00:20]} Rc7 {[%emt 0:00:09]} 24. c3 {[%emt 0:01:49]} Nc4 {[%emt 0:00:40]} 25. Re2 {[%emt 0:00:03]} Rd6 {[%emt 0:05:08]} 26. Kf2 {[%emt 0:01:19]} e5 {[%emt 0:08:21]} 27. Rc1 {[%emt 0:01:18]} a5 {[%emt 0:01:20]} 28. Rec2 {[%emt 0:03:55]} Rb6 {[%emt 0:05:11]} 29. Re1 {[%emt 0:00:32]} e4 {[%emt 0:05:39]} 30. Nf4 {[%emt 0:00:56]} Rxb2 {[%emt 0:01:31]} 31. Rxb2 {[%emt 0:00:49]} Nxb2 {[%emt 0:00:07]} 32. Rb1 {[%emt 0:00:11]} Nd3+ {[%emt 0:00:23]} 33. Nxd3 {[%emt 0:00:47]} exd3 {[%emt 0:00:11]} 34. a4 {[%emt 0:01:16]} Rxc3 {[%emt 0:00:45]} 35. Rxb7+ {[%emt 0:00:06]} Kg6 {[%emt 0:00:22]} 36. Rd7 {[%emt 0:03:41]} Rc5 {[%emt 0:05:15]} 37. Ke1 {[%emt 0:01:40]} Rc2 {[%emt 0:01:53]} 38. Rxd5 {[%emt 0:00:42]} Rxg2 {[%emt 0:00:20]} 39. Rxd3 {[%emt 0:00:13]} Rxh2 {[%emt 0:00:07]} 40. Rd5 {[%emt 0:00:10]} Rh5 {[%emt 0:00:24]} 41. Rb5 {[%emt 0:00:08]} Re5 {[%emt 0:01:25]} 42. Kf2 {[%emt 0:00:28]} Kf7 {[%emt 0:03:45]} 43. Rb7+ {[%emt 0:00:10]} Re7 {[%emt 0:00:11]} 44. Rb5 {[%emt 0:00:07]} Ra7 {[%emt 0:00:05]} 45. e4 {[%emt 0:00:28]} g5 {[%emt 0:00:52]} 46. Kg3 {[%emt 0:01:22]} Ra6 {[%emt 0:00:25]} 47. Rd5 {[%emt 0:00:35]} Kg6 {[%emt 0:00:21]} 48. Rb5 {[%emt 0:00:40]} h5 {[%emt 0:00:11]} 49. Rd5 {[%emt 0:00:36]} Rb6 {[%emt 0:01:17]} 50. Rxa5 {[%emt 0:00:08]} Rb3 {[%emt 0:00:05]} 51. Rf5 {[%emt 0:00:40]} Ra3 {[%emt 0:00:27]} 52. a5 {[%emt 0:00:05]} g4 {[%emt 0:01:19]} 53. Kh4 {[%emt 0:01:08]} gxf3 {[%emt 0:00:24]} 54. Kg3 {[%emt 0:00:27]} Ra4 {[%emt 0:05:50]} 55. Kxf3 {[%emt 0:00:35]} Ra3+ {[%emt 0:00:05]} 56. Kf4 {[%emt 0:00:49]} h4 {[%emt 0:00:20]} 57. Rb5 {[%emt 0:01:03]} h3 {[%emt 0:00:11]} 58. Rb2 {[%emt 0:00:19]} Rxa5 {[%emt 0:00:07]} 59. Rh2 {[%emt 0:00:15]} Ra3 {[%emt 0:00:07]} 60. Kg4 {[%emt 0:00:09]} Ra4 {[%emt 0:00:07]} 61. Re2 {[%emt 0:00:53]} f5+ {[%emt 0:00:46]} 62. Kxh3 {[%emt 0:00:12]} fxe4 {[%emt 0:00:03]} 63. Kg4 {[%emt 0:00:10]} Rb4 {[%emt 0:00:17]} 64. Kf4 {[%emt 0:00:12]} Ra4 {[%emt 0:00:07]} 65. Rxe4 {[%emt 0:00:07]} Rxe4+ {[%emt 0:00:05]} 66. Kxe4 {[%emt 0:00:05]} 1/2-1/2

[Event "FIDE WCCC Open-12 2024"]
[Site "Montesilvano"]
[Date "2024.11.25"]
[Round "10.33"]
[White "Miransh Vyas"]
[Black "Sun, Kevin"]
[Result "0-1"]
[ECO "D00"]
[WhiteElo "1705"]
[BlackElo "1966"]
[Annotator "RC"]
[PlyCount "130"]
[EventDate "2024.11.18"]
[EventType "swiss"]
[EventCountry "ITA"]
[SourceTitle "playchess.com"]
[Source "ChessBase"]
[SourceQuality "1"]
[TimeControl "5400+30"]

1. d4 {[%emt 0:00:48]} Nf6 {[%emt 0:00:06]} 2. Nc3 {[%emt 0:00:05]} d5 {[%emt 0:00:05]} 3. Bf4 {[%emt 0:00:05]} a6 {[%emt 0:00:11]} 4. e3 {[%emt 0:00:08]} h6 {[%emt 0:00:13]} 5. Nf3 {[%emt 0:02:35]} e6 {[%emt 0:00:15]} 6. Bd3 {[%emt 0:11:22]} c5 {[%emt 0:00:10]} 7. dxc5 {[%emt 0:02:02]} Bxc5 {[%emt 0:00:07]} 8. O-O {[%emt 0:00:59]} O-O {[%emt 0:00:16]} 9. e4 {[%emt 0:07:04]} Nc6 {[%emt 0:02:19]} 10. exd5 {[%emt 0:11:39]} exd5 {[%emt 0:02:50]} 11. h3 {[%emt 0:08:18]} b5 {[%emt 0:01:11]} 12. Ne2 {[%emt 0:11:52]} Ra7 {[%emt 0:08:59]} 13. c3 {[%emt 0:04:43]} Ne4 {[%emt 0:04:38]} 14. Ned4 {[%emt 0:09:12]} Nxd4 {[%emt 0:05:46]} 15. Nxd4 {[%emt 0:05:31]} Qf6 {[%emt 0:03:34]} 16. Be3 {[%emt 0:00:19]} Re7 {[%emt 0:02:15]} 17. Re1 {[%emt 0:04:59]} Rfe8 {[%emt 0:03:36]} 18. Qc2 {[%emt 0:05:39]} b4 {[%emt 0:05:01]} 19. Rad1 {[%emt 0:05:10]} bxc3 {[%emt 0:02:47]} 20. bxc3 {[%emt 0:00:25]} Bd7 {[%emt 0:05:09]} 21. Be2 {[%emt 0:04:14]} Qg6 {[%emt 0:06:42]} 22. Kh2 {[%emt 0:01:40]} Bd6+ {[%emt 0:01:49]} 23. Kg1 {[%emt 0:02:06]} Bxh3 {[%emt 0:02:32]} 24. Bf3 {[%emt 0:00:16]} Bd7 {[%emt 0:05:44]} 25. Qd3 {[%emt 0:00:41]} Rc8 {[%emt 0:02:27]} 26. Rc1 {[%emt 0:00:50]} Ba3 {[%emt 0:01:10]} 27. Rb1 {[%emt 0:00:34]} Qd6 {[%emt 0:03:56]} 28. c4 {[%emt 0:00:40]} dxc4 {[%emt 0:01:41]} 29. Qc2 {[%emt 0:00:26]} Ng5 {[%emt 0:01:17]} 30. Bb7 {[%emt 0:00:21]} Rc7 {[%emt 0:01:19]} 31. Nf5 {[%emt 0:00:33]} Bxf5 {[%emt 0:00:10]} 32. Qxf5 {[%emt 0:00:08]} g6 {[%emt 0:00:30]} 33. Qa5 {[%emt 0:00:41]} Rxb7 {[%emt 0:00:49]} 34. Rbd1 {[%emt 0:00:50]} Qb4 {[%emt 0:01:44]} 35. Qd8+ {[%emt 0:00:23]} Kh7 {[%emt 0:00:10]} 36. Rf1 {[%emt 0:00:38]} Ne6 {[%emt 0:00:28]} 37. Qa8 {[%emt 0:00:24]} Red7 {[%emt 0:01:04]} 38. Rb1 {[%emt 0:00:24]} Qxb1 {[%emt 0:01:21]} 39. Rxb1 {[%emt 0:00:06]} Rxb1+ {[%emt 0:00:03]} 40. Kh2 {[%emt 0:00:10]} Bc5 {[%emt 0:00:35]} 41. Bxc5 {[%emt 0:00:30]} Nxc5 {[%emt 0:00:09]} 42. Qc6 {[%emt 0:00:05]} Rbb7 {[%emt 0:00:36]} 43. Qxc5 {[%emt 0:00:11]} Rbc7 {[%emt 0:00:58]} 44. Qa3 {[%emt 0:00:32]} c3 {[%emt 0:00:03]} 45. Qc1 {[%emt 0:00:13]} c2 {[%emt 0:00:03]} 46. g4 {[%emt 0:00:24]} Rd1 {[%emt 0:00:04]} 47. Qf4 {[%emt 0:00:11]} c1=Q {[%emt 0:00:07]} 48. Qxc1 {[%emt 0:00:03]} Rcxc1 {[%emt 0:00:05]} 49. a4 {[%emt 0:00:06]} Rc4 {[%emt 0:00:04]} 50. a5 {[%emt 0:00:03]} Ra4 {[%emt 0:00:03]} 51. g5 {[%emt 0:00:05]} Rxa5 {[%emt 0:00:03]} 52. gxh6 {[%emt 0:00:05]} Rg5 {[%emt 0:00:07]} 53. f4 {[%emt 0:00:04]} Kxh6 {[%emt 0:00:13]} 54. fxg5+ {[%emt 0:05:58]} Kxg5 {[%emt 0:00:03]} 55. Kg2 {[%emt 0:00:00]} a5 {[%emt 0:00:03]} 56. Kf3 {[%emt 0:00:00]} a4 {[%emt 0:00:02]} 57. Ke2 {[%emt 0:00:00]} Rd8 {[%emt 0:00:04]} 58. Ke3 {[%emt 0:00:00]} a3 {[%emt 0:00:03]} 59. Ke4 {[%emt 0:00:00]} a2 {[%emt 0:00:03]} 60. Ke3 {[%emt 0:00:00]} a1=Q {[%emt 0:00:36]} 61. Ke4 {[%emt 0:00:00]} f5+ {[%emt 0:00:12]} 62. Ke3 {[%emt 0:00:00]} Qe1+ {[%emt 0:00:37]} 63. Kf3 {[%emt 0:04:30]} Rd3+ {[%emt 0:32:43]} 64. Kg2 {[%emt 0:00:00]} Rg3+ {[%emt 0:00:00]} 65. Kh2 {[%emt 0:00:00]} Qg1# {[%emt 0:00:00]} 0-1

[Event "FIDE WCCC Open-12 2024"]
[Site "Montesilvano"]
[Date "2024.11.25"]
[Round "10.34"]
[White "Zhandos, Akarys"]
[Black "Yusupov, Rauf"]
[Result "1-0"]
[ECO "C43"]
[WhiteElo "1932"]
[BlackElo "1763"]
[Annotator "NA RC"]
[PlyCount "63"]
[EventDate "2024.11.18"]
[EventType "swiss"]
[EventCountry "ITA"]
[SourceTitle "playchess.com"]
[Source "ChessBase"]
[SourceQuality "1"]
[TimeControl "5400+30"]

1. e4 {[%emt 0:00:00]} e5 {[%emt 0:00:07]} 2. Nf3 {[%emt 0:00:10]} Nf6 {[%emt 0:00:09]} 3. d4 {[%emt 0:00:48]} Nxe4 {[%emt 0:00:05]} 4. Bd3 {[%emt 0:00:31]} d5 {[%emt 0:00:03]} 5. Nxe5 {[%emt 0:00:07]} Bd6 {[%emt 0:00:12]} 6. Nc3 {[%emt 0:01:36]} Nxc3 {[%emt 0:00:23]} 7. bxc3 {[%emt 0:00:04]} Bxe5 {[%emt 0:16:43]} 8. dxe5 {[%emt 0:00:01]} c5 {[%emt 0:01:56]} 9. O-O {[%emt 0:00:39]} c4 {[%emt 0:01:42]} 10. Be2 {[%emt 0:01:30]} O-O {[%emt 0:00:04]} 11. Ba3 {[%emt 0:04:40]} Re8 {[%emt 0:01:23]} 12. Bd6 {[%emt 0:00:20]} Be6 {[%emt 0:02:51]} 13. f4 {[%emt 0:04:54]} f5 {[%emt 0:03:05]} 14. Rb1 {[%emt 0:02:53]} Qd7 {[%emt 0:00:19]} 15. Bf3 {[%emt 0:01:03]} Qc6 {[%emt 0:00:02]} 16. Qd4 {[%emt 0:00:11]} Nd7 {[%emt 0:01:15]} 17. Kh1 {[%emt 0:01:42]} Nb6 {[%emt 0:04:20]} 18. Rfd1 {[%emt 0:01:12]} Rad8 {[%emt 0:01:51]} 19. Bc5 {[%emt 0:00:36]} Na4 {[%emt 0:15:10]} 20. Bd6 {[%emt 0:02:05]} Nb6 {[%emt 0:00:06]} 21. h3 {[%emt 0:01:55]} Rd7 {[%emt 0:03:48]} 22. Qe3 {[%emt 0:05:08]} Nc8 {[%emt 0:02:23]} 23. Bb4 {[%emt 0:01:22]} b6 {[%emt 0:00:51]} 24. Qf2 {[%emt 0:05:01]} Qa4 {[%emt 0:06:45]} 25. Rd2 {[%emt 0:06:03]} a5 {[%emt 0:08:01]} 26. Bd6 {[%emt 0:00:47]} Qxa2 {[%emt 0:05:49]} 27. Re1 {[%emt 0:03:13]} Nxd6 {[%emt 0:05:20]} 28. exd6 {[%emt 0:00:07]} Rxd6 {[%emt 0:00:02]} 29. Rxd5 {[%emt 0:01:48]} Rxd5 {[%emt 0:03:17]} 30. Bxd5 {[%emt 0:00:34]} Kf7 {[%emt 0:02:07]} 31. Rxe6 {[%emt 0:01:32]} Rxe6 {[%emt 0:00:14]} 32. Qe1 {[%emt 0:00:08]} 1-0